Workbook

Sheet TCD
A3: Étiquettes de lignes | B3: Somme de Débit | C3: Somme de Crédit
A4: APICIL | B4: 3322.2
A5: ARRCO M | C5: 602.85
A6: ARRCO P | C6: 16558.91
A7: AXA | B7: 326.8
A8: CARSAT M | C8: 1649.96
A9: CARSAT P | C9: 4210
A10: Coiffeur | B10: 370
A11: Distribanque | B11: 500
A12: DONS | B12: 710
A13: ENGIE | B13: 630.61
A14: EPARGNE | B14: 510
A15: Frais bancaires | B15: 108.54
A16: Frais méd. | B16: 1299.76
A17: IMPOTS | B17: 530
A18: INTERETS | C18: 19.57
A19: Le Progrès | B19: 514.8
A20: Loisirs | B20: 210
A21: maison retraite | B21: 5000
A22: Menage | B22: 885.03
A23: Pédicure | B23: 76
A24: Quotidien | B24: 2385.83
A25: Rbt APICIL | C25: 444.26
A26: Rbt CPAM | C26: 190.41
A27: RBT IMPOTS | C27: 2669
A28: Repas | B28: 6400.2
A29: SFR | B29: 280.84
A30: Soins | B30: 270.71
A31: solde au 01/01/2020 | C31: 6391.95
A32: TAXES | B32: 5.87
A33: URSSAF | B33: 303.64
A34: (vide) | B34: 14.78
A35: Total général | B35: 24655.61 | C35: 32736.91

Sheet Année en liste
A1: Journal de Banque | D1: ANNEE
A3: Date | B3: Libellé | C3: Libelle | D3: Débit | E3: Crédit | F3: Solde
B5: solde au 01/01/2020 | E5: 6391.95 | F5: =F4-Tableau1[[#This Row],[Débit]]+Tableau1[[#This Row],[Crédit]] -> 6391.95
A6: 2020-01-02 | B6: ARRCO P | C6: libelle | E6: 1261.1 | F6: =F5-Tableau1[[#This Row],[Débit]]+Tableau1[[#This Row],[Crédit]] -> 7653.05
A7: " | B7: ARRCO P | C7: libelle | E7: 604.26 | F7: =F6-Tableau1[[#This Row],[Débit]]+Tableau1[[#This Row],[Crédit]] -> 8257.31
A8: " | B8: ARRCO M | C8: libelle | E8: 54.05 | F8: =F7-Tableau1[[#This Row],[Débit]]+Tableau1[[#This Row],[Crédit]] -> 8311.36
A9: 2020-01-05 | B9: Coiffeur | C9: libelle | D9: 40 | F9: =F8-Tableau1[[#This Row],[Débit]]+Tableau1[[#This Row],[Crédit]] -> 8271.36
B10: Coiffeur | C10: libelle | D10: 75 | F10: =F9-Tableau1[[#This Row],[Débit]]+Tableau1[[#This Row],[Crédit]] -> 8196.36
B11: Frais méd. | C11: libelle | D11: 178 | F11: =F10-Tableau1[[#This Row],[Débit]]+Tableau1[[#This Row],[Crédit]] -> 8018.36
B12: Quotidien | C12: libelle | D12: 15.25 | F12: =F11-Tableau1[[#This Row],[Débit]]+Tableau1[[#This Row],[Crédit]] -> 8003.11
B13: Quotidien | C13: libelle | D13: 107.85 | F13: =F12-Tableau1[[#This Row],[Débit]]+Tableau1[[#This Row],[Crédit]] -> 7895.26
B14: Quotidien | C14: libelle | D14: 6.2 | F14: =F13-Tableau1[[#This Row],[Débit]]+Tableau1[[#This Row],[Crédit]] -> 7889.06
B15: Quotidien | C15: libelle | D15: 2.2 | F15: =F14-Tableau1[[#This Row],[Débit]]+Tableau1[[#This Row],[Crédit]] -> 7886.86
B16: Quotidien | C16: libelle | D16: 34.78 | F16: =F15-Tableau1[[#This Row],[Débit]]+Tableau1[[#This Row],[Crédit]] -> 7852.08
B17: Quotidien | C17: libelle | D17: 26.26 | F17: =F16-Tableau1[[#This Row],[Débit]]+Tableau1[[#This Row],[Crédit]] -> 7825.82
B18: Quotidien | C18: libelle | D18: 61.7 | F18: =F17-Tableau1[[#This Row],[Débit]]+Tableau1[[#This Row],[Crédit]] -> 7764.12
A19: 2020-01-09 | B19: CARSAT M | C19: libelle | E19: 50 | F19: =F18-Tableau1[[#This Row],[Débit]]+Tableau1[[#This Row],[Crédit]] -> 7814.12
A20: " | B20: CARSAT P | C20: libelle | E20: 800 | F20: =F19-Tableau1[[#This Row],[Débit]]+Tableau1[[#This Row],[Crédit]] -> 8614.12
A21: 2020-01-10 | B21: ENGIE | C21: libelle | D21: 39 | F21: =F20-Tableau1[[#This Row],[Débit]]+Tableau1[[#This Row],[Crédit]] -> 8575.12
A22: " | B22: Rbt CPAM | C22: libelle | E22: 31.52 | F22: =F21-Tableau1[[#This Row],[Débit]]+Tableau1[[#This Row],[Crédit]] -> 8606.64
A23: 2020-01-14 | B23: Rbt APICIL | C23: libelle | E23: 14.36 | F23: =F22-Tableau1[[#This Row],[Débit]]+Tableau1[[#This Row],[Crédit]] -> 8621
A24: 2020-01-15 | B24: Quotidien | C24: libelle | D24: 56 | F24: =F23-Tableau1[[#This Row],[Débit]]+Tableau1[[#This Row],[Crédit]] -> 8565
A25: 2020-01-16 | B25: Repas | C25: libelle | D25: 500 | F25: =F24-Tableau1[[#This Row],[Débit]]+Tableau1[[#This Row],[Crédit]] -> 8065
A26: " | B26: maison retraite | C26: libelle | D26: 500 | F26: =F25-Tableau1[[#This Row],[Débit]]+Tableau1[[#This Row],[Crédit]] -> 7565
A27: " | B27: IMPOTS | C27: libelle | D27: 53 | F27: =F26-Tableau1[[#This Row],[Débit]]+Tableau1[[#This Row],[Crédit]] -> 7512
A28: 2020-01-17 | B28: APICIL | C28: libelle | D28: 830.55 | F28: =F27-Tableau1[[#This Row],[Débit]]+Tableau1[[#This Row],[Crédit]] -> 6681.45
A29: " | B29: Menage | C29: libelle | D29: 106 | F29: =F28-Tableau1[[#This Row],[Débit]]+Tableau1[[#This Row],[Crédit]] -> 6575.45
A30: " | B30: Menage | C30: libelle | D30: 56 | F30: =F29-Tableau1[[#This Row],[Débit]]+Tableau1[[#This Row],[Crédit]] -> 6519.45
A31: 2020-01-18 | B31: Frais bancaires | C31: libelle | D31: 14.5 | F31: =F30-Tableau1[[#This Row],[Débit]]+Tableau1[[#This Row],[Crédit]] -> 6504.95
A32: 2020-01-20 | B32: Rbt APICIL | C32: libelle | E32: 93 | F32: =F31-Tableau1[[#This Row],[Débit]]+Tableau1[[#This Row],[Crédit]] -> 6597.95
A33: 2020-01-24 | B33: DONS | C33: libelle | D33: 50 | F33: =F32-Tableau1[[#This Row],[Débit]]+Tableau1[[#This Row],[Crédit]] -> 6547.95
A34: 2020-01-27 | B34: SFR | C34: libelle | D34: 28 | F34: =F33-Tableau1[[#This Row],[Débit]]+Tableau1[[#This Row],[Crédit]] -> 6519.95
A35: 2020-01-28 | B35: Quotidien | C35: libelle | D35: 34.9 | F35: =F34-Tableau1[[#This Row],[Débit]]+Tableau1[[#This Row],[Crédit]] -> 6485.05
A36: 2020-01-31 | B36: URSSAF | C36: libelle | D36: 25.6 | F36: =F35-Tableau1[[#This Row],[Débit]]+Tableau1[[#This Row],[Crédit]] -> 6459.45
A37: 2020-02-03 | B37: ARRCO M | C37: libelle | E37: 54.88 | F37: =F36-Tableau1[[#This Row],[Débit]]+Tableau1[[#This Row],[Crédit]] -> 6514.33
A38: " | B38: ARRCO P | C38: libelle | E38: 50 | F38: =F37-Tableau1[[#This Row],[Débit]]+Tableau1[[#This Row],[Crédit]] -> 6564.33
A39: " | B39: ARRCO P | C39: libelle | E39: 800 | F39: =F38-Tableau1[[#This Row],[Débit]]+Tableau1[[#This Row],[Crédit]] -> 7364.33
A40: 2020-02-05 | B40: Soins | C40: libelle | D40: 50 | F40: =F39-Tableau1[[#This Row],[Débit]]+Tableau1[[#This Row],[Crédit]] -> 7314.33
A41: " | B41: QUOTIDIEN | C41: libelle | D41: 21.93 | F41: =F40-Tableau1[[#This Row],[Débit]]+Tableau1[[#This Row],[Crédit]] -> 7292.4
A42: " | B42: Frais méd. | C42: libelle | D42: 96 | F42: =F41-Tableau1[[#This Row],[Débit]]+Tableau1[[#This Row],[Crédit]] -> 7196.4
A43: " | B43: QUOTIDIEN | C43: libelle | D43: 22.73 | F43: =F42-Tableau1[[#This Row],[Débit]]+Tableau1[[#This Row],[Crédit]] -> 7173.67
A44: " | B44: Soins | C44: libelle | D44: 33.12 | F44: =F43-Tableau1[[#This Row],[Débit]]+Tableau1[[#This Row],[Crédit]] -> 7140.55
A45: " | B45: QUOTIDIEN | C45: libelle | D45: 9.38 | F45: =F44-Tableau1[[#This Row],[Débit]]+Tableau1[[#This Row],[Crédit]] -> 7131.17
A46: " | B46: QUOTIDIEN | C46: libelle | D46: 47.36 | F46: =F45-Tableau1[[#This Row],[Débit]]+Tableau1[[#This Row],[Crédit]] -> 7083.81
A47: " | B47: QUOTIDIEN | C47: libelle | D47: 23.44 | F47: =F46-Tableau1[[#This Row],[Débit]]+Tableau1[[#This Row],[Crédit]] -> 7060.37
A48: 2020-02-06 | C48: libelle | D48: 14.78 | F48: =F47-Tableau1[[#This Row],[Débit]]+Tableau1[[#This Row],[Crédit]] -> 7045.59
A49: " | B49: RBT IMPOTS | C49: libelle | E49: 830 | F49: =F48-Tableau1[[#This Row],[Débit]]+Tableau1[[#This Row],[Crédit]] -> 7875.59
A50: 2020-02-07 | B50: CARSAT M | C50: libelle | E50: 100 | F50: =F49-Tableau1[[#This Row],[Débit]]+Tableau1[[#This Row],[Crédit]] -> 7975.59
A51: " | B51: CARSAT P | C51: libelle | E51: 100 | F51: =F50-Tableau1[[#This Row],[Débit]]+Tableau1[[#This Row],[Crédit]] -> 8075.59
A52: " | B52: Coiffeur | C52: libelle | D52: 44 | F52: =F51-Tableau1[[#This Row],[Débit]]+Tableau1[[#This Row],[Crédit]] -> 8031.59
A53: " | B53: Coiffeur | C53: libelle | D53: 23 | F53: =F52-Tableau1[[#This Row],[Débit]]+Tableau1[[#This Row],[Crédit]] -> 8008.59
A54: 2020-02-10 | B54: ENGIE | C54: libelle | D54: 39 | F54: =F53-Tableau1[[#This Row],[Débit]]+Tableau1[[#This Row],[Crédit]] -> 7969.59
A55: " | B55: DONS | C55: libelle | D55: 70 | F55: =F54-Tableau1[[#This Row],[Débit]]+Tableau1[[#This Row],[Crédit]] -> 7899.59
A56: " | B56: QUOTIDIEN | C56: libelle | D56: 45 | F56: =F55-Tableau1[[#This Row],[Débit]]+Tableau1[[#This Row],[Crédit]] -> 7854.59
A57: 2020-02-11 | B57: DONS | C57: libelle | D57: 80 | F57: =F56-Tableau1[[#This Row],[Débit]]+Tableau1[[#This Row],[Crédit]] -> 7774.59
A58: 2020-02-12 | B58: Repas | C58: libelle | D58: 500 | F58: =F57-Tableau1[[#This Row],[Débit]]+Tableau1[[#This Row],[Crédit]] -> 7274.59
A59: 2020-02-18 | B59: maison retraite | C59: libelle | D59: 500 | F59: =F58-Tableau1[[#This Row],[Débit]]+Tableau1[[#This Row],[Crédit]] -> 6774.59
A60: " | B60: IMPOTS | C60: libelle | D60: 53 | F60: =F59-Tableau1[[#This Row],[Débit]]+Tableau1[[#This Row],[Crédit]] -> 6721.59
A61: 2020-02-21 | B61: Rbt CPAM | C61: libelle | E61: 32.1 | F61: =F60-Tableau1[[#This Row],[Débit]]+Tableau1[[#This Row],[Crédit]] -> 6753.69
A62: 2020-02-24 | B62: Rbt APICIL | C62: libelle | E62: 28.8 | F62: =F61-Tableau1[[#This Row],[Débit]]+Tableau1[[#This Row],[Crédit]] -> 6782.49
A63: 2020-02-25 | B63: SFR | C63: libelle | D63: 28 | F63: =F62-Tableau1[[#This Row],[Débit]]+Tableau1[[#This Row],[Crédit]] -> 6754.49
A64: " | B64: Distribanque | C64: libelle | D64: 500 | F64: =F63-Tableau1[[#This Row],[Débit]]+Tableau1[[#This Row],[Crédit]] -> 6254.49
A65: 2020-02-28 | B65: URSSAF | C65: libelle | D65: 25.6 | F65: =F64-Tableau1[[#This Row],[Débit]]+Tableau1[[#This Row],[Crédit]] -> 6228.89
A66: 2020-03-02 | B66: ARRCO P | C66: libelle | E66: 800 | F66: =F65-Tableau1[[#This Row],[Débit]]+Tableau1[[#This Row],[Crédit]] -> 7028.89
A67: " | B67: ARRCO M | C67: libelle | E67: 54.88 | F67: =F66-Tableau1[[#This Row],[Débit]]+Tableau1[[#This Row],[Crédit]] -> 7083.77
A68: " | B68: ARRCO P | C68: libelle | E68: 100 | F68: =F67-Tableau1[[#This Row],[Débit]]+Tableau1[[#This Row],[Crédit]] -> 7183.77
A69: " | B69: Menage | C69: libelle | D69: 47.87 | F69: =F68-Tableau1[[#This Row],[Débit]]+Tableau1[[#This Row],[Crédit]] -> 7135.9
A70: " | B70: Menage | C70: libelle | D70: 59.84 | F70: =F69-Tableau1[[#This Row],[Débit]]+Tableau1[[#This Row],[Crédit]] -> 7076.06
A71: " | B71: Menage | C71: libelle | D71: 70 | F71: =F70-Tableau1[[#This Row],[Débit]]+Tableau1[[#This Row],[Crédit]] -> 7006.06
A72: 2020-03-05 | B72: EPARGNE | C72: libelle | D72: 170 | F72: =F71-Tableau1[[#This Row],[Débit]]+Tableau1[[#This Row],[Crédit]] -> 6836.06
A73: " | B73: Quotidien | C73: libelle | D73: 5.99 | F73: =F72-Tableau1[[#This Row],[Débit]]+Tableau1[[#This Row],[Crédit]] -> 6830.07
A74: " | B74: Quotidien | C74: libelle | D74: 14.64 | F74: =F73-Tableau1[[#This Row],[Débit]]+Tableau1[[#This Row],[Crédit]] -> 6815.43
A75: " | B75: Quotidien | C75: libelle | D75: 12.71 | F75: =F74-Tableau1[[#This Row],[Débit]]+Tableau1[[#This Row],[Crédit]] -> 6802.72
A76: " | B76: Frais méd. | C76: libelle | D76: 150 | F76: =F75-Tableau1[[#This Row],[Débit]]+Tableau1[[#This Row],[Crédit]] -> 6652.72
A77: " | B77: Quotidien | C77: libelle | D77: 15.05 | F77: =F76-Tableau1[[#This Row],[Débit]]+Tableau1[[#This Row],[Crédit]] -> 6637.67
A78: " | B78: Soins | C78: libelle | D78: 50 | F78: =F77-Tableau1[[#This Row],[Débit]]+Tableau1[[#This Row],[Crédit]] -> 6587.67
A79: " | B79: Quotidien | C79: libelle | D79: 31.47 | F79: =F78-Tableau1[[#This Row],[Débit]]+Tableau1[[#This Row],[Crédit]] -> 6556.2
A80: 2020-03-09 | B80: CARSAT M | C80: libelle | E80: 262.49 | F80: =F79-Tableau1[[#This Row],[Débit]]+Tableau1[[#This Row],[Crédit]] -> 6818.69
A81: " | B81: CARSAT P | C81: libelle | E81: 500 | F81: =F80-Tableau1[[#This Row],[Débit]]+Tableau1[[#This Row],[Crédit]] -> 7318.69
A82: 2020-03-11 | B82: Repas | C82: libelle | D82: 500 | F82: =F81-Tableau1[[#This Row],[Débit]]+Tableau1[[#This Row],[Crédit]] -> 6818.69
A83: 2020-03-12 | B83: ENGIE | C83: libelle | D83: 39 | F83: =F82-Tableau1[[#This Row],[Débit]]+Tableau1[[#This Row],[Crédit]] -> 6779.69
A84: 2020-03-13 | B84: Quotidien | C84: libelle | D84: 80.78 | F84: =F83-Tableau1[[#This Row],[Débit]]+Tableau1[[#This Row],[Crédit]] -> 6698.91
A85: 2020-03-17 | B85: Frais bancaires | C85: libelle | D85: 21 | F85: =F84-Tableau1[[#This Row],[Débit]]+Tableau1[[#This Row],[Crédit]] -> 6677.91
A86: " | B86: IMPOTS | C86: libelle | D86: 53 | F86: =F85-Tableau1[[#This Row],[Débit]]+Tableau1[[#This Row],[Crédit]] -> 6624.91
A87: 2020-03-18 | B87: maison retraite | C87: libelle | D87: 500 | F87: =F86-Tableau1[[#This Row],[Débit]]+Tableau1[[#This Row],[Crédit]] -> 6124.91
A88: 2020-03-20 | B88: DONS | C88: libelle | D88: 100 | F88: =F87-Tableau1[[#This Row],[Débit]]+Tableau1[[#This Row],[Crédit]] -> 6024.91
A89: 2020-03-23 | B89: Rbt CPAM | C89: libelle | E89: 16.5 | F89: =F88-Tableau1[[#This Row],[Débit]]+Tableau1[[#This Row],[Crédit]] -> 6041.41
A90: 2020-03-24 | B90: Frais bancaires | C90: libelle | D90: 0.76 | F90: =F89-Tableau1[[#This Row],[Débit]]+Tableau1[[#This Row],[Crédit]] -> 6040.65
A91: " | B91: Rbt APICIL | C91: libelle | E91: 7.5 | F91: =F90-Tableau1[[#This Row],[Débit]]+Tableau1[[#This Row],[Crédit]] -> 6048.15
A92: 2020-03-25 | B92: SFR | C92: libelle | D92: 28 | F92: =F91-Tableau1[[#This Row],[Débit]]+Tableau1[[#This Row],[Crédit]] -> 6020.15
A93: 2020-03-31 | B93: URSSAF | C93: libelle | D93: 42.07 | F93: =F92-Tableau1[[#This Row],[Débit]]+Tableau1[[#This Row],[Crédit]] -> 5978.08
A94: 2020-04-01 | B94: ARRCO P | C94: libelle | E94: 800 | F94: =F93-Tableau1[[#This Row],[Débit]]+Tableau1[[#This Row],[Crédit]] -> 6778.08
A95: " | B95: ARRCO M | C95: libelle | E95: 54.88 | F95: =F94-Tableau1[[#This Row],[Débit]]+Tableau1[[#This Row],[Crédit]] -> 6832.96
A96: " | B96: ARRCO P | C96: libelle | E96: 200 | F96: =F95-Tableau1[[#This Row],[Débit]]+Tableau1[[#This Row],[Crédit]] -> 7032.96
A97: 2020-04-06 | B97: Quotidien | C97: libelle | D97: 56 | F97: =F96-Tableau1[[#This Row],[Débit]]+Tableau1[[#This Row],[Crédit]] -> 6976.96
A98: " | B98: Quotidien | C98: libelle | D98: 32 | F98: =F97-Tableau1[[#This Row],[Débit]]+Tableau1[[#This Row],[Crédit]] -> 6944.96
A99: " | B99: Quotidien | C99: libelle | D99: 25 | F99: =F98-Tableau1[[#This Row],[Débit]]+Tableau1[[#This Row],[Crédit]] -> 6919.96
A100: " | B100: Soins | C100: libelle | D100: 9.48 | F100: =F99-Tableau1[[#This Row],[Débit]]+Tableau1[[#This Row],[Crédit]] -> 6910.48
A101: 2020-04-09 | B101: Repas | C101: libelle | D101: 500 | F101: =F100-Tableau1[[#This Row],[Débit]]+Tableau1[[#This Row],[Crédit]] -> 6410.48
A102: " | B102: CARSAT P | C102: libelle | E102: 500 | F102: =F101-Tableau1[[#This Row],[Débit]]+Tableau1[[#This Row],[Crédit]] -> 6910.48
A103: " | B103: CARSAT M | C103: libelle | E103: 262.49 | F103: =F102-Tableau1[[#This Row],[Débit]]+Tableau1[[#This Row],[Crédit]] -> 7172.97
A104: 2020-04-14 | B104: ENGIE | C104: libelle | D104: 39 | F104: =F103-Tableau1[[#This Row],[Débit]]+Tableau1[[#This Row],[Crédit]] -> 7133.97
A105: 2020-04-15 | B105: Le Progrès | C105: libelle | D105: 171.6 | F105: =F104-Tableau1[[#This Row],[Débit]]+Tableau1[[#This Row],[Crédit]] -> 6962.37
A106: " | B106: APICIL | C106: libelle | D106: 830.55 | F106: =F105-Tableau1[[#This Row],[Débit]]+Tableau1[[#This Row],[Crédit]] -> 6131.82
A107: 2020-04-16 | B107: IMPOTS | C107: libelle | D107: 53 | F107: =F106-Tableau1[[#This Row],[Débit]]+Tableau1[[#This Row],[Crédit]] -> 6078.82
A108: " | B108: Quotidien | C108: libelle | D108: 22.58 | F108: =F107-Tableau1[[#This Row],[Débit]]+Tableau1[[#This Row],[Crédit]] -> 6056.24
A109: " | B109: Quotidien | C109: libelle | D109: 15.13 | F109: =F108-Tableau1[[#This Row],[Débit]]+Tableau1[[#This Row],[Crédit]] -> 6041.11
A110: 2020-04-17 | B110: maison retraite | C110: libelle | D110: 500 | F110: =F109-Tableau1[[#This Row],[Débit]]+Tableau1[[#This Row],[Crédit]] -> 5541.11
A111: " | B111: Quotidien | C111: libelle | D111: 30.25 | F111: =F110-Tableau1[[#This Row],[Débit]]+Tableau1[[#This Row],[Crédit]] -> 5510.86
A112: 2020-04-18 | B112: Frais bancaires | C112: libelle | D112: 14.16 | F112: =F111-Tableau1[[#This Row],[Débit]]+Tableau1[[#This Row],[Crédit]] -> 5496.7
A113: 2020-04-24 | B113: Quotidien | C113: libelle | D113: 146.13 | F113: =F112-Tableau1[[#This Row],[Débit]]+Tableau1[[#This Row],[Crédit]] -> 5350.57
A114: " | B114: Menage | C114: libelle | D114: 47.87 | F114: =F113-Tableau1[[#This Row],[Débit]]+Tableau1[[#This Row],[Crédit]] -> 5302.7
A115: " | B115: Menage | C115: libelle | D115: 56 | F115: =F114-Tableau1[[#This Row],[Débit]]+Tableau1[[#This Row],[Crédit]] -> 5246.7
A116: 2020-04-27 | B116: SFR | C116: libelle | D116: 28 | F116: =F115-Tableau1[[#This Row],[Débit]]+Tableau1[[#This Row],[Crédit]] -> 5218.7
A117: 2020-04-29 | B117: Repas | C117: libelle | D117: 500 | F117: =F116-Tableau1[[#This Row],[Débit]]+Tableau1[[#This Row],[Crédit]] -> 4718.7
A118: 2020-04-30 | B118: URSSAF | C118: libelle | D118: 67.32 | F118: =F117-Tableau1[[#This Row],[Débit]]+Tableau1[[#This Row],[Crédit]] -> 4651.38
A119: 2020-05-04 | B119: ARRCO P | C119: libelle | E119: 300 | F119: =F118-Tableau1[[#This Row],[Débit]]+Tableau1[[#This Row],[Crédit]] -> 4951.38
A120: " | B120: ARRCO M | C120: libelle | E120: 54.88 | F120: =F119-Tableau1[[#This Row],[Débit]]+Tableau1[[#This Row],[Crédit]] -> 5006.26
A121: " | B121: ARRCO P | C121: libelle | E121: 500 | F121: =F120-Tableau1[[#This Row],[Débit]]+Tableau1[[#This Row],[Crédit]] -> 5506.26
A122: 2020-05-07 | B122: CARSAT P | C122: libelle | E122: 300 | F122: =F121-Tableau1[[#This Row],[Débit]]+Tableau1[[#This Row],[Crédit]] -> 5806.26
A123: " | B123: CARSAT M | C123: libelle | E123: 50 | F123: =F122-Tableau1[[#This Row],[Débit]]+Tableau1[[#This Row],[Crédit]] -> 5856.26
A124: 2020-05-11 | B124: DONS | C124: libelle | D124: 100 | F124: =F123-Tableau1[[#This Row],[Débit]]+Tableau1[[#This Row],[Crédit]] -> 5756.26
A125: " | B125: ENGIE | C125: libelle | D125: 39 | F125: =F124-Tableau1[[#This Row],[Débit]]+Tableau1[[#This Row],[Crédit]] -> 5717.26
A126: 2020-05-13 | B126: Quotidien | C126: libelle | D126: 9.63 | F126: =F125-Tableau1[[#This Row],[Débit]]+Tableau1[[#This Row],[Crédit]] -> 5707.63
A127: " | B127: Quotidien | C127: libelle | D127: 11.4 | F127: =F126-Tableau1[[#This Row],[Débit]]+Tableau1[[#This Row],[Crédit]] -> 5696.23
A128: " | B128: Quotidien | C128: libelle | D128: 16.49 | F128: =F127-Tableau1[[#This Row],[Débit]]+Tableau1[[#This Row],[Crédit]] -> 5679.74
A129: 2020-05-18 | B129: IMPOTS | C129: libelle | D129: 53 | F129: =F128-Tableau1[[#This Row],[Débit]]+Tableau1[[#This Row],[Crédit]] -> 5626.74
A130: " | B130: maison retraite | C130: libelle | D130: 500 | F130: =F129-Tableau1[[#This Row],[Débit]]+Tableau1[[#This Row],[Crédit]] -> 5126.74
A131: " | B131: Soins | C131: libelle | D131: 9.09 | F131: =F130-Tableau1[[#This Row],[Débit]]+Tableau1[[#This Row],[Crédit]] -> 5117.65
A132: " | B132: Quotidien | C132: libelle | D132: 20 | F132: =F131-Tableau1[[#This Row],[Débit]]+Tableau1[[#This Row],[Crédit]] -> 5097.65
A133: 2020-05-22 | B133: Pédicure | C133: libelle | D133: 76 | F133: =F132-Tableau1[[#This Row],[Débit]]+Tableau1[[#This Row],[Crédit]] -> 5021.65
A134: 2020-05-25 | B134: SFR | C134: libelle | D134: 28 | F134: =F133-Tableau1[[#This Row],[Débit]]+Tableau1[[#This Row],[Crédit]] -> 4993.65
A135: 2020-05-27 | B135: Quotidien | C135: libelle | D135: 120 | F135: =F134-Tableau1[[#This Row],[Débit]]+Tableau1[[#This Row],[Crédit]] -> 4873.65
A136: 2020-05-29 | B136: URSSAF | C136: libelle | D136: 33.66 | F136: =F135-Tableau1[[#This Row],[Débit]]+Tableau1[[#This Row],[Crédit]] -> 4839.99
A137: " | B137: Quotidien | C137: libelle | D137: 17.14 | F137: =F136-Tableau1[[#This Row],[Débit]]+Tableau1[[#This Row],[Crédit]] -> 4822.85
A138: " | B138: Repas | C138: libelle | D138: 500 | F138: =F137-Tableau1[[#This Row],[Débit]]+Tableau1[[#This Row],[Crédit]] -> 4322.85
A139: 2020-06-02 | B139: ARRCO P | C139: libelle | E139: 500 | F139: =F138-Tableau1[[#This Row],[Débit]]+Tableau1[[#This Row],[Crédit]] -> 4822.85
A140: " | B140: ARRCO P | C140: libelle | E140: 100 | F140: =F139-Tableau1[[#This Row],[Débit]]+Tableau1[[#This Row],[Crédit]] -> 4922.85
A141: " | B141: ARRCO M | C141: libelle | E141: 54.88 | F141: =F140-Tableau1[[#This Row],[Débit]]+Tableau1[[#This Row],[Crédit]] -> 4977.73
A142: " | B142: Coiffeur | C142: libelle | D142: 62 | F142: =F141-Tableau1[[#This Row],[Débit]]+Tableau1[[#This Row],[Crédit]] -> 4915.73
A143: 2020-06-04 | B143: Quotidien | C143: libelle | D143: 24.16 | F143: =F142-Tableau1[[#This Row],[Débit]]+Tableau1[[#This Row],[Crédit]] -> 4891.57
A144: " | B144: Rbt APICIL | C144: libelle | E144: 20.64 | F144: =F143-Tableau1[[#This Row],[Débit]]+Tableau1[[#This Row],[Crédit]] -> 4912.21
A145: 2020-06-05 | B145: EPARGNE | C145: libelle | D145: 170 | F145: =F144-Tableau1[[#This Row],[Débit]]+Tableau1[[#This Row],[Crédit]] -> 4742.21
A146: " | B146: AXA | C146: libelle | D146: 360.51 | F146: =F145-Tableau1[[#This Row],[Débit]]+Tableau1[[#This Row],[Crédit]] -> 4381.7
A147: 2020-06-08 | B147: Frais méd. | C147: libelle | D147: 140 | F147: =F146-Tableau1[[#This Row],[Débit]]+Tableau1[[#This Row],[Crédit]] -> 4241.7
A148: 2020-06-09 | B148: CARSAT M | C148: libelle | E148: 100 | F148: =F147-Tableau1[[#This Row],[Débit]]+Tableau1[[#This Row],[Crédit]] -> 4341.7
A149: " | B149: CARSAT P | C149: libelle | E149: 810 | F149: =F148-Tableau1[[#This Row],[Débit]]+Tableau1[[#This Row],[Crédit]] -> 5151.7
A150: 2020-06-10 | B150: ENGIE | C150: libelle | D150: 39 | F150: =F149-Tableau1[[#This Row],[Débit]]+Tableau1[[#This Row],[Crédit]] -> 5112.7
A151: 2020-06-12 | B151: Menage | C151: libelle | D151: 56 | F151: =F150-Tableau1[[#This Row],[Débit]]+Tableau1[[#This Row],[Crédit]] -> 5056.7
A152: " | B152: Menage | C152: libelle | D152: 47.87 | F152: =F151-Tableau1[[#This Row],[Débit]]+Tableau1[[#This Row],[Crédit]] -> 5008.83
A153: 2020-06-16 | B153: IMPOTS | C153: libelle | D153: 53 | F153: =F152-Tableau1[[#This Row],[Débit]]+Tableau1[[#This Row],[Crédit]] -> 4955.83
A154: 2020-06-17 | B154: Quotidien | C154: libelle | D154: 4.44 | F154: =F153-Tableau1[[#This Row],[Débit]]+Tableau1[[#This Row],[Crédit]] -> 4951.39
A155: " | B155: Quotidien | C155: libelle | D155: 13.34 | F155: =F154-Tableau1[[#This Row],[Débit]]+Tableau1[[#This Row],[Crédit]] -> 4938.05
A156: 2020-06-18 | B156: maison retraite | C156: libelle | D156: 500 | F156: =F155-Tableau1[[#This Row],[Débit]]+Tableau1[[#This Row],[Crédit]] -> 4438.05
A157: 2020-06-19 | B157: URSSAF | C157: libelle | D157: -33.66 | F157: =F156-Tableau1[[#This Row],[Débit]]+Tableau1[[#This Row],[Crédit]] -> 4471.71 | G157: ???
A158: " | B158: Repas | C158: libelle | D158: 500 | F158: =F157-Tableau1[[#This Row],[Débit]]+Tableau1[[#This Row],[Crédit]] -> 3971.71
A159: 2020-06-22 | B159: Soins | C159: libelle | D159: 34.32 | F159: =F158-Tableau1[[#This Row],[Débit]]+Tableau1[[#This Row],[Crédit]] -> 3937.39
A160: 2020-06-23 | B160: Frais bancaires | C160: libelle | D160: 14 | F160: =F159-Tableau1[[#This Row],[Débit]]+Tableau1[[#This Row],[Crédit]] -> 3923.39
A161: 2020-06-24 | B161: DONS | C161: libelle | D161: 100 | F161: =F160-Tableau1[[#This Row],[Débit]]+Tableau1[[#This Row],[Crédit]] -> 3823.39
A162: 2020-06-25 | B162: Frais bancaires | C162: libelle | D162: 7.9 | F162: =F161-Tableau1[[#This Row],[Débit]]+Tableau1[[#This Row],[Crédit]] -> 3815.49
A163: " | B163: Frais bancaires | C163: libelle | D163: 7.9 | F163: =F162-Tableau1[[#This Row],[Débit]]+Tableau1[[#This Row],[Crédit]] -> 3807.59
A164: 2020-06-26 | B164: SFR | C164: libelle | D164: 28 | F164: =F163-Tableau1[[#This Row],[Débit]]+Tableau1[[#This Row],[Crédit]] -> 3779.59
A165: " | B165: Rbt CPAM | C165: libelle | E165: 36.43 | F165: =F164-Tableau1[[#This Row],[Débit]]+Tableau1[[#This Row],[Crédit]] -> 3816.02
A166: 2020-06-29 | B166: Rbt APICIL | C166: libelle | E166: 18.6 | F166: =F165-Tableau1[[#This Row],[Débit]]+Tableau1[[#This Row],[Crédit]] -> 3834.62
A167: " | B167: Quotidien | C167: libelle | D167: 55 | F167: =F166-Tableau1[[#This Row],[Débit]]+Tableau1[[#This Row],[Crédit]] -> 3779.62
A168: 2020-06-30 | B168: URSSAF | C168: libelle | D168: 33.66 | F168: =F167-Tableau1[[#This Row],[Débit]]+Tableau1[[#This Row],[Crédit]] -> 3745.96
A169: " | B169: Frais méd. | C169: libelle | D169: 194.88 | F169: =F168-Tableau1[[#This Row],[Débit]]+Tableau1[[#This Row],[Crédit]] -> 3551.08
A170: 2020-07-01 | B170: ARRCO P | C170: libelle | E170: 8110 | F170: =F169-Tableau1[[#This Row],[Débit]]+Tableau1[[#This Row],[Crédit]] -> 11661.08
A171: " | B171: ARRCO P | C171: libelle | E171: 200 | F171: =F170-Tableau1[[#This Row],[Débit]]+Tableau1[[#This Row],[Crédit]] -> 11861.08
A172: " | B172: ARRCO M | C172: libelle | E172: 54.88 | F172: =F171-Tableau1[[#This Row],[Débit]]+Tableau1[[#This Row],[Crédit]] -> 11915.96
A173: " | B173: Quotidien | C173: libelle | D173: 30 | F173: =F172-Tableau1[[#This Row],[Débit]]+Tableau1[[#This Row],[Crédit]] -> 11885.96
A174: " | B174: Menage | C174: libelle | D174: 56 | F174: =F173-Tableau1[[#This Row],[Débit]]+Tableau1[[#This Row],[Crédit]] -> 11829.96
A175: " | B175: Menage | C175: libelle | D175: 47.87 | F175: =F174-Tableau1[[#This Row],[Débit]]+Tableau1[[#This Row],[Crédit]] -> 11782.09
A176: 2020-07-06 | B176: Loisirs | C176: libelle | D176: 210 | F176: =F175-Tableau1[[#This Row],[Débit]]+Tableau1[[#This Row],[Crédit]] -> 11572.09
A177: 2020-07-09 | B177: CARSAT M | C177: libelle | E177: 100 | F177: =F176-Tableau1[[#This Row],[Débit]]+Tableau1[[#This Row],[Crédit]] -> 11672.09
A178: " | B178: CARSAT P | C178: libelle | E178: 200 | F178: =F177-Tableau1[[#This Row],[Débit]]+Tableau1[[#This Row],[Crédit]] -> 11872.09
A179: " | B179: Repas | C179: libelle | D179: 500 | F179: =F178-Tableau1[[#This Row],[Débit]]+Tableau1[[#This Row],[Crédit]] -> 11372.09
A180: " | B180: Quotidien | C180: libelle | D180: 49.88 | F180: =F179-Tableau1[[#This Row],[Débit]]+Tableau1[[#This Row],[Crédit]] -> 11322.21
A181: 2020-07-10 | B181: Rbt APICIL | C181: libelle | E181: 112.08 | F181: =F180-Tableau1[[#This Row],[Débit]]+Tableau1[[#This Row],[Crédit]] -> 11434.29
A182: 2020-07-13 | B182: ENGIE | C182: libelle | D182: 39 | F182: =F181-Tableau1[[#This Row],[Débit]]+Tableau1[[#This Row],[Crédit]] -> 11395.29
A183: 2020-07-15 | B183: APICIL | C183: libelle | D183: 830.55 | F183: =F182-Tableau1[[#This Row],[Débit]]+Tableau1[[#This Row],[Crédit]] -> 10564.74
A184: 2020-07-16 | B184: maison retraite | C184: libelle | D184: 500 | F184: =F183-Tableau1[[#This Row],[Débit]]+Tableau1[[#This Row],[Crédit]] -> 10064.74
B185: IMPOTS | C185: libelle | D185: 53 | F185: =F184-Tableau1[[#This Row],[Débit]]+Tableau1[[#This Row],[Crédit]] -> 10011.74
A186: 2020-07-18 | B186: Frais bancaires | C186: libelle | D186: 14.16 | F186: =F185-Tableau1[[#This Row],[Débit]]+Tableau1[[#This Row],[Crédit]] -> 9997.58
A187: 2020-07-21 | B187: Quotidien | C187: libelle | D187: 120 | F187: =F186-Tableau1[[#This Row],[Débit]]+Tableau1[[#This Row],[Crédit]] -> 9877.58
A188: 2020-07-22 | B188: Soins | C188: libelle | D188: 21.81 | F188: =F187-Tableau1[[#This Row],[Débit]]+Tableau1[[#This Row],[Crédit]] -> 9855.77
A189: 2020-07-23 | B189: Quotidien | C189: libelle | D189: 34 | F189: =F188-Tableau1[[#This Row],[Débit]]+Tableau1[[#This Row],[Crédit]] -> 9821.77
A190: 2020-07-27 | B190: SFR | C190: libelle | D190: 28 | F190: =F189-Tableau1[[#This Row],[Débit]]+Tableau1[[#This Row],[Crédit]] -> 9793.77
B191: Repas | C191: libelle | D191: 500 | F191: =F190-Tableau1[[#This Row],[Débit]]+Tableau1[[#This Row],[Crédit]] -> 9293.77
B192: URSSAF | C192: libelle | D192: 33.66 | F192: =F191-Tableau1[[#This Row],[Débit]]+Tableau1[[#This Row],[Crédit]] -> 9260.11
A193: 2020-08-03 | B193: ARRCO M | C193: libelle | E193: 54.88 | F193: =F192-Tableau1[[#This Row],[Débit]]+Tableau1[[#This Row],[Crédit]] -> 9314.99
A194: " | B194: ARRCO P | C194: libelle | E194: 200 | F194: =F193-Tableau1[[#This Row],[Débit]]+Tableau1[[#This Row],[Crédit]] -> 9514.99
A195: " | B195: ARRCO P | C195: libelle | E195: 200 | F195: =F194-Tableau1[[#This Row],[Débit]]+Tableau1[[#This Row],[Crédit]] -> 9714.99
A196: 2020-08-05 | B196: Quotidien | C196: libelle | D196: 16.03 | F196: =F195-Tableau1[[#This Row],[Débit]]+Tableau1[[#This Row],[Crédit]] -> 9698.96
A197: 2020-08-07 | B197: CARSAT M | C197: libelle | E197: 100 | F197: =F196-Tableau1[[#This Row],[Débit]]+Tableau1[[#This Row],[Crédit]] -> 9798.96
A198: " | B198: CARSAT P | C198: libelle | E198: 300 | F198: =F197-Tableau1[[#This Row],[Débit]]+Tableau1[[#This Row],[Crédit]] -> 10098.96
A199: " | B199: Coiffeur | C199: libelle | D199: 63 | F199: =F198-Tableau1[[#This Row],[Débit]]+Tableau1[[#This Row],[Crédit]] -> 10035.96
A200: 2020-08-10 | B200: ENGIE | C200: libelle | D200: 39 | F200: =F199-Tableau1[[#This Row],[Débit]]+Tableau1[[#This Row],[Crédit]] -> 9996.96
A201: " | B201: Menage | C201: libelle | D201: 70 | F201: =F200-Tableau1[[#This Row],[Débit]]+Tableau1[[#This Row],[Crédit]] -> 9926.96
A202: " | B202: Menage | C202: libelle | D202: 59.84 | F202: =F201-Tableau1[[#This Row],[Débit]]+Tableau1[[#This Row],[Crédit]] -> 9867.12
... 70 more rows
